[Event "*** Titled Tuesday Blitz"]
[Site "Chess.com"]
[Date "2020.12.29"]
[Round "2"]
[White "annamaja"]
[Black "CSB7"]
[Result "0-1"]
[WhiteElo "2290"]
[BlackElo "2635"]
[TimeControl "180+1"]
[EndTime "10:18:31 PST"]
[Termination "CSB7 won by resignation"]

1. e4 {[%clk 0:03:00.9]} 1... e6 {[%clk 0:02:57]} 2. d4 {[%clk 0:03:00.9]} 2...
d5 {[%clk 0:02:55.6]} 3. exd5 {[%clk 0:03:01.4]} 3... exd5 {[%clk 0:02:55.4]} 4.
c4 {[%clk 0:03:02.3]} 4... Nf6 {[%clk 0:02:54.2]} 5. Nc3 {[%clk 0:03:02.8]} 5...
Be7 {[%clk 0:02:53.6]} 6. Bd3 {[%clk 0:03:03.2]} 6... Nc6 {[%clk 0:02:52.8]} 7.
Nge2 {[%clk 0:03:03.5]} 7... Nb4 {[%clk 0:02:52]} 8. O-O {[%clk 0:02:52.6]} 8...
Nxd3 {[%clk 0:02:49.4]} 9. Qxd3 {[%clk 0:02:53.5]} 9... dxc4 {[%clk 0:02:49.7]}
10. Qxc4 {[%clk 0:02:53.5]} 10... c6 {[%clk 0:02:44.2]} 11. Bf4 {[%clk
0:02:49.4]} 11... O-O {[%clk 0:02:41.8]} 12. Rad1 {[%clk 0:02:46.2]} 12... Be6
{[%clk 0:02:41.5]} 13. Qd3 {[%clk 0:02:44]} 13... Nd5 {[%clk 0:02:34.7]} 14. Bg3
{[%clk 0:02:38.8]} 14... Qd7 {[%clk 0:02:30.7]} 15. a3 {[%clk 0:02:24.7]} 15...
Rfe8 {[%clk 0:02:29]} 16. Rfe1 {[%clk 0:02:23.5]} 16... Bf8 {[%clk 0:02:23]} 17.
h3 {[%clk 0:02:08.2]} 17... Nb6 {[%clk 0:02:15]} 18. Nf4 {[%clk 0:01:53.2]}
18... Bc4 {[%clk 0:02:05.6]} 19. Qd2 {[%clk 0:01:27.1]} 19... Rxe1+ {[%clk
0:02:02.4]} 20. Rxe1 {[%clk 0:01:27.1]} 20... Re8 {[%clk 0:02:02.6]} 21. Rxe8
{[%clk 0:01:19.9]} 21... Qxe8 {[%clk 0:02:03.5]} 22. d5 {[%clk 0:01:17.4]} 22...
cxd5 {[%clk 0:01:55.7]} 23. Qd4 {[%clk 0:00:43.1]} 23... Qc6 {[%clk 0:01:42]}
24. Nd3 {[%clk 0:00:20.7]} 24... f6 {[%clk 0:01:36.1]} 25. Nc1 {[%clk
0:00:13.2]} 25... Qe6 {[%clk 0:01:27.2]} 26. Kh2 {[%clk 0:00:06.6]} 26... h5
{[%clk 0:00:59]} 27. h4 {[%clk 0:00:05.8]} 27... Kf7 {[%clk 0:00:58.7]} 28. b3
{[%clk 0:00:05.2]} 28... Ba6 {[%clk 0:00:53.4]} 29. a4 {[%clk 0:00:04.3]} 29...
Bd6 {[%clk 0:00:49.4]} 30. Nd3 {[%clk 0:00:02.3]} 30... Bxd3 {[%clk 0:00:35.6]}
31. Qxd3 {[%clk 0:00:02.7]} 31... Bxg3+ {[%clk 0:00:23.3]} 32. Qxg3 {[%clk
0:00:03.6]} 32... Qe5 {[%clk 0:00:11.7]} 33. Nb5 {[%clk 0:00:03.7]} 33... d4
{[%clk 0:00:05]} 34. Qxe5 {[%clk 0:00:03.3]} 34... fxe5 {[%clk 0:00:05]} 35.
Nd6+ {[%clk 0:00:03.4]} 35... Ke6 {[%clk 0:00:05.3]} 36. Nxb7 {[%clk 0:00:04.3]}
36... Kd5 {[%clk 0:00:04.9]} 37. Na5 {[%clk 0:00:03.7]} 37... d3 {[%clk
0:00:04.6]} 38. b4 {[%clk 0:00:03]} 38... d2 {[%clk 0:00:04.7]} 39. Nb3 {[%clk
0:00:02.9]} 39... d1=Q {[%clk 0:00:04.7]} 0-1

[Event "*** Titled Tuesday Blitz"]
[Site "Chess.com"]
[Date "2020.12.29"]
[Round "2"]
[White "szabadaba"]
[Black "Chessbard1972"]
[Result "1-0"]
[WhiteElo "2594"]
[BlackElo "2320"]
[TimeControl "180+1"]
[EndTime "10:18:32 PST"]
[Termination "szabadaba won on time"]

1. e4 {[%clk 0:02:49.9]} 1... c5 {[%clk 0:02:58.5]} 2. Nc3 {[%clk 0:02:49.7]}
2... a6 {[%clk 0:02:57.6]} 3. g3 {[%clk 0:02:50.3]} 3... b5 {[%clk 0:02:57.4]}
4. Bg2 {[%clk 0:02:51]} 4... Bb7 {[%clk 0:02:57.8]} 5. d3 {[%clk 0:02:51.4]}
5... e6 {[%clk 0:02:58.6]} 6. Nf3 {[%clk 0:02:51.6]} 6... Nf6 {[%clk 0:02:59.1]}
7. O-O {[%clk 0:02:51.3]} 7... h5 {[%clk 0:02:59.3]} 8. Bg5 {[%clk 0:02:48.9]}
8... Be7 {[%clk 0:02:52.8]} 9. e5 {[%clk 0:02:41.7]} 9... Ng4 {[%clk 0:02:46.5]}
10. Bxe7 {[%clk 0:02:28.8]} 10... Qxe7 {[%clk 0:02:45.6]} 11. h3 {[%clk
0:02:29.3]} 11... Nh6 {[%clk 0:02:44.6]} 12. Ne4 {[%clk 0:02:29.3]} 12... Bxe4
{[%clk 0:02:35.8]} 13. dxe4 {[%clk 0:02:30.2]} 13... Nc6 {[%clk 0:02:33.2]} 14.
Qd2 {[%clk 0:02:23.5]} 14... Rd8 {[%clk 0:02:19]} 15. Rad1 {[%clk 0:02:17.4]}
15... O-O {[%clk 0:02:17.6]} 16. Rfe1 {[%clk 0:02:15.6]} 16... f6 {[%clk
0:02:07.3]} 17. exf6 {[%clk 0:02:14.9]} 17... Qxf6 {[%clk 0:02:06.6]} 18. e5
{[%clk 0:02:13]} 18... Qg6 {[%clk 0:02:04.7]} 19. Nh4 {[%clk 0:01:56.2]} 19...
Qf7 {[%clk 0:02:01.8]} 20. Qe3 {[%clk 0:00:52.1]} 20... Nd4 {[%clk 0:01:55.3]}
21. Rd2 {[%clk 0:00:45.3]} 21... Nhf5 {[%clk 0:01:39.9]} 22. Nxf5 {[%clk
0:00:44.5]} 22... Nxf5 {[%clk 0:01:22]} 23. Qxc5 {[%clk 0:00:42]} 23... Rc8
{[%clk 0:01:20.9]} 24. Qa7 {[%clk 0:00:39.8]} 24... d5 {[%clk 0:00:58]} 25. Qxa6
{[%clk 0:00:37.7]} 25... b4 {[%clk 0:00:49.7]} 26. Qd3 {[%clk 0:00:28.3]} 26...
Ra8 {[%clk 0:00:45.3]} 27. Qb3 {[%clk 0:00:27.1]} 27... Rab8 {[%clk 0:00:41]}
28. Kh2 {[%clk 0:00:22.3]} 28... h4 {[%clk 0:00:36.3]} 29. Rxd5 {[%clk
0:00:20.6]} 29... hxg3+ {[%clk 0:00:18.6]} 30. fxg3 {[%clk 0:00:20.7]} 30...
Rbd8 {[%clk 0:00:16.9]} 31. Rxd8 {[%clk 0:00:18.6]} 31... Rxd8 {[%clk
0:00:16.3]} 32. Rf1 {[%clk 0:00:18.7]} 32... Qg6 {[%clk 0:00:14.5]} 33. g4
{[%clk 0:00:18.1]} 33... Ne3 {[%clk 0:00:13.6]} 34. Qxe3 {[%clk 0:00:14]} 34...
Qxc2 {[%clk 0:00:11.6]} 35. Rf2 {[%clk 0:00:14.1]} 35... Qc7 {[%clk 0:00:10.8]}
36. Qf4 {[%clk 0:00:13.4]} 36... Qe7 {[%clk 0:00:10.3]} 37. Be4 {[%clk 0:00:13]}
37... Rc8 {[%clk 0:00:09.5]} 38. Bb1 {[%clk 0:00:12.7]} 38... Rd8 {[%clk
0:00:09]} 39. Qe4 {[%clk 0:00:12.8]} 39... g5 {[%clk 0:00:07.4]} 40. Qg6+ {[%clk
0:00:12.8]} 40... Qg7 {[%clk 0:00:04.9]} 41. Qxe6+ {[%clk 0:00:12.6]} 41... Kh8
{[%clk 0:00:05.1]} 42. Qf6 {[%clk 0:00:11.7]} 42... Re8 {[%clk 0:00:01.5]} 43.
Qxg7+ {[%clk 0:00:10.7]} 43... Kxg7 {[%clk 0:00:02]} 44. Re2 {[%clk 0:00:11.5]}
1-0

[Event "*** Titled Tuesday Blitz"]
[Site "Chess.com"]
[Date "2020.12.29"]
[Round "2"]
[White "Dynamikus"]
[Black "juancruzarias"]
[Result "0-1"]
[WhiteElo "2743"]
[BlackElo "2525"]
[TimeControl "180+1"]
[EndTime "10:18:33 PST"]
[Termination "juancruzarias won by checkmate"]

1. e4 {[%clk 0:03:00.9]} 1... c5 {[%clk 0:03:00.2]} 2. Nf3 {[%clk 0:03:00.5]}
2... g6 {[%clk 0:03:00.5]} 3. d4 {[%clk 0:02:57.6]} 3... cxd4 {[%clk 0:03:01.4]}
4. Nxd4 {[%clk 0:02:58]} 4... Nc6 {[%clk 0:03:00.6]} 5. Nc3 {[%clk 0:02:58.3]}
5... Bg7 {[%clk 0:03:00.8]} 6. Nb3 {[%clk 0:02:57]} 6... Nf6 {[%clk 0:02:55.9]}
7. Be2 {[%clk 0:02:57.3]} 7... O-O {[%clk 0:02:53.4]} 8. O-O {[%clk 0:02:57.1]}
8... b6 {[%clk 0:02:53.7]} 9. Re1 {[%clk 0:02:56]} 9... Bb7 {[%clk 0:02:52]} 10.
Bf1 {[%clk 0:02:56]} 10... Na5 {[%clk 0:02:19.2]} 11. e5 {[%clk 0:02:48.2]}
11... Ne8 {[%clk 0:02:17.7]} 12. Nxa5 {[%clk 0:02:44.1]} 12... bxa5 {[%clk
0:02:17.8]} 13. Bf4 {[%clk 0:02:42.5]} 13... d6 {[%clk 0:02:02]} 14. exd6 {[%clk
0:02:34.1]} 14... Nxd6 {[%clk 0:02:02.9]} 15. Nd5 {[%clk 0:01:49.6]} 15... e6
{[%clk 0:01:52.9]} 16. Ne7+ {[%clk 0:01:41.2]} 16... Qxe7 {[%clk 0:01:50.1]} 17.
Bxd6 {[%clk 0:01:41.4]} 17... Qf6 {[%clk 0:01:50.6]} 18. Bxf8 {[%clk 0:01:41.8]}
18... Bxf8 {[%clk 0:01:51.5]} 19. c3 {[%clk 0:01:39.1]} 19... Bc5 {[%clk
0:01:51.1]} 20. Qc2 {[%clk 0:01:39.6]} 20... a4 {[%clk 0:01:49.9]} 21. Rad1
{[%clk 0:01:36.2]} 21... Bb6 {[%clk 0:01:49.7]} 22. Rd2 {[%clk 0:01:30.1]} 22...
Qf4 {[%clk 0:01:49.8]} 23. Qd1 {[%clk 0:01:15.2]} 23... h5 {[%clk 0:01:48.8]}
24. g3 {[%clk 0:01:13.7]} 24... Qf5 {[%clk 0:01:45.3]} 25. Bg2 {[%clk
0:01:11.8]} 25... Bxg2 {[%clk 0:01:44.6]} 26. Kxg2 {[%clk 0:01:12.7]} 26... Rc8
{[%clk 0:01:44.7]} 27. a3 {[%clk 0:01:10.5]} 27... Qb5 {[%clk 0:01:43.1]} 28.
Qf3 {[%clk 0:01:07.1]} 28... Kg7 {[%clk 0:01:41.9]} 29. Red1 {[%clk 0:01:07]}
29... Rc7 {[%clk 0:01:38]} 30. h4 {[%clk 0:01:02.9]} 30... Re7 {[%clk
0:01:37.9]} 31. Qe4 {[%clk 0:00:58.6]} 31... e5 {[%clk 0:01:36.8]} 32. Qd5
{[%clk 0:00:52.3]} 32... Qe8 {[%clk 0:01:33.3]} 33. Re2 {[%clk 0:00:47.3]} 33...
e4 {[%clk 0:01:33.4]} 34. Rde1 {[%clk 0:00:46.1]} 34... f5 {[%clk 0:01:33.5]}
35. Rd1 {[%clk 0:00:45.8]} 35... e3 {[%clk 0:01:29.5]} 36. fxe3 {[%clk
0:00:44.1]} 36... Kh6 {[%clk 0:01:29.6]} 37. Qd6 {[%clk 0:00:39.9]} 37... Qa8+
{[%clk 0:01:29.2]} 38. Qd5 {[%clk 0:00:40]} 38... Qe8 {[%clk 0:01:28.9]} 39. Rd3
{[%clk 0:00:40.2]} 39... Re4 {[%clk 0:01:28.4]} 40. Qb7 {[%clk 0:00:35.8]} 40...
Re7 {[%clk 0:01:24.1]} 41. Qd5 {[%clk 0:00:32.5]} 41... Re4 {[%clk 0:01:22.7]}
42. c4 {[%clk 0:00:32.2]} 42... Rg4 {[%clk 0:01:22.3]} 43. Qb7 {[%clk
0:00:25.5]} 43... Bc7 {[%clk 0:01:21.2]} 44. Qxc7 {[%clk 0:00:23.8]} 44... Qe4+
{[%clk 0:01:21.4]} 45. Kf2 {[%clk 0:00:20.6]} 45... Qxd3 {[%clk 0:01:21.6]} 46.
Qe5 {[%clk 0:00:20]} 46... Qd8 {[%clk 0:01:19.3]} 47. Qd5 {[%clk 0:00:19.3]}
47... Qc7 {[%clk 0:01:18.4]} 48. Qf3 {[%clk 0:00:19.2]} 48... Qxc4 {[%clk
0:01:17.3]} 49. Rd2 {[%clk 0:00:19]} 49... Re4 {[%clk 0:01:13.5]} 50. Qe2 {[%clk
0:00:18.2]} 50... Qe6 {[%clk 0:01:11.3]} 51. Qd3 {[%clk 0:00:17.5]} 51... f4
{[%clk 0:01:09.9]} 52. exf4 {[%clk 0:00:16.8]} 52... Qb6+ {[%clk 0:01:06.1]} 53.
Kg2 {[%clk 0:00:15.6]} 53... Re1 {[%clk 0:01:05.8]} 54. Rf2 {[%clk 0:00:15.6]}
54... Qc6+ {[%clk 0:01:05.2]} 55. Qf3 {[%clk 0:00:15.9]} 55... Qc1 {[%clk
0:01:05.5]} 56. Kh2 {[%clk 0:00:16.3]} 56... Re3 {[%clk 0:01:04.6]} 57. Qg2
{[%clk 0:00:15.9]} 57... Qc5 {[%clk 0:01:00.7]} 58. Rd2 {[%clk 0:00:14.5]} 58...
Qe7 {[%clk 0:01:00.6]} 59. Qf2 {[%clk 0:00:13.3]} 59... Qe4 {[%clk 0:00:58.4]}
60. Rc2 {[%clk 0:00:12.6]} 60... Re1 {[%clk 0:00:57.9]} 61. f5 {[%clk
0:00:11.3]} 61... Rh1# {[%clk 0:00:57.2]} 0-1

[Event "*** Titled Tuesday Blitz"]
[Site "Chess.com"]
[Date "2020.12.29"]
[Round "2"]
[White "hurricane7791"]
[Black "Vusatiuk_Vladimir"]
[Result "1-0"]
[WhiteElo "2637"]
[BlackElo "2295"]
[TimeControl "180+1"]
[EndTime "10:18:33 PST"]
[Termination "hurricane7791 won by resignation"]

1. d4 {[%clk 0:03:00.9]} 1... Nf6 {[%clk 0:02:59.8]} 2. c4 {[%clk 0:02:56.6]}
2... e6 {[%clk 0:02:59.8]} 3. Nc3 {[%clk 0:02:56.9]} 3... Bb4 {[%clk 0:03:00.2]}
4. Qc2 {[%clk 0:02:57.2]} 4... c5 {[%clk 0:03:00.7]} 5. dxc5 {[%clk 0:02:57.1]}
5... O-O {[%clk 0:03:01]} 6. Nf3 {[%clk 0:02:56]} 6... Na6 {[%clk 0:03:00.9]} 7.
g3 {[%clk 0:02:56.2]} 7... Nxc5 {[%clk 0:02:59.7]} 8. Bg2 {[%clk 0:02:56.8]}
8... Nfe4 {[%clk 0:02:58]} 9. Bd2 {[%clk 0:02:43]} 9... Nxd2 {[%clk 0:02:57.7]}
10. Nxd2 {[%clk 0:02:43.9]} 10... Qa5 {[%clk 0:02:33.3]} 11. Rc1 {[%clk
0:02:43]} 11... Rb8 {[%clk 0:02:14.3]} 12. a3 {[%clk 0:02:38.4]} 12... Bxc3
{[%clk 0:02:14.6]} 13. Qxc3 {[%clk 0:02:38.8]} 13... Qxc3 {[%clk 0:02:15.1]} 14.
Rxc3 {[%clk 0:02:39.7]} 14... b6 {[%clk 0:02:11]} 15. b4 {[%clk 0:02:39.5]}
15... Na4 {[%clk 0:02:01.5]} 16. Rd3 {[%clk 0:02:39.6]} 16... Bb7 {[%clk
0:02:00.2]} 17. Bxb7 {[%clk 0:02:27.1]} 17... Rxb7 {[%clk 0:02:01.1]} 18. e4
{[%clk 0:02:27.4]} 18... Rc8 {[%clk 0:01:59]} 19. Ke2 {[%clk 0:02:27.7]} 19...
Nb2 {[%clk 0:01:56.4]} 20. Rc3 {[%clk 0:02:19.6]} 20... d5 {[%clk 0:01:51.1]}
21. c5 {[%clk 0:01:42.9]} 21... bxc5 {[%clk 0:01:45.4]} 22. bxc5 {[%clk
0:01:42.9]} 22... Na4 {[%clk 0:01:25.1]} 23. Rb3 {[%clk 0:01:40.2]} 23... Rbc7
{[%clk 0:01:04.5]} 24. exd5 {[%clk 0:01:38.8]} 24... exd5 {[%clk 0:01:05.4]} 25.
Rd1 {[%clk 0:01:31.1]} 25... Nxc5 {[%clk 0:01:04]} 26. Rb4 {[%clk 0:01:30.2]}
26... f6 {[%clk 0:00:54]} 27. Rd4 {[%clk 0:01:21.4]} 27... Rd8 {[%clk
0:00:31.7]} 28. Nf3 {[%clk 0:01:17.7]} 28... Re7+ {[%clk 0:00:31.8]} 29. Kf1
{[%clk 0:01:17.5]} 29... Red7 {[%clk 0:00:32.2]} 30. Kg2 {[%clk 0:01:12.2]}
30... Kf7 {[%clk 0:00:32.2]} 31. Ne1 {[%clk 0:01:05.3]} 31... Ne6 {[%clk
0:00:31.2]} 32. Ra4 {[%clk 0:01:03]} 32... d4 {[%clk 0:00:31.3]} 33. Nd3 {[%clk
0:01:03.6]} 33... Rc7 {[%clk 0:00:29.6]} 34. Ra6 {[%clk 0:01:02]} 34... Rdd7
{[%clk 0:00:25.3]} 35. Nb4 {[%clk 0:00:54.9]} 35... Nc5 {[%clk 0:00:23.8]} 36.
Ra5 {[%clk 0:00:52.3]} 36... Nb3 {[%clk 0:00:20.5]} 37. Rd5 {[%clk 0:00:44.3]}
37... Rxd5 {[%clk 0:00:19.8]} 38. Nxd5 {[%clk 0:00:45.2]} 38... Rd7 {[%clk
0:00:20.6]} 39. Nb4 {[%clk 0:00:44.3]} 39... Nc5 {[%clk 0:00:19.2]} 40. Kf3
{[%clk 0:00:43.4]} 40... f5 {[%clk 0:00:18.2]} 41. Nc6 {[%clk 0:00:42.5]} 41...
Ne6 {[%clk 0:00:17.3]} 42. Ne5+ {[%clk 0:00:42.4]} 42... Ke7 {[%clk 0:00:17.4]}
43. Nxd7 {[%clk 0:00:43.3]} 43... Kxd7 {[%clk 0:00:18.3]} 44. Rb1 {[%clk
0:00:44]} 44... Kc6 {[%clk 0:00:18.3]} 45. Ke2 {[%clk 0:00:44.6]} 45... Kd5
{[%clk 0:00:15]} 46. Rb7 {[%clk 0:00:43.7]} 46... Ke4 {[%clk 0:00:14.5]} 47. Re7
{[%clk 0:00:41.5]} 47... Kd5 {[%clk 0:00:14.5]} 48. Rxa7 {[%clk 0:00:41.1]}
48... h6 {[%clk 0:00:13.9]} 49. Kd2 {[%clk 0:00:38.7]} 49... Kc4 {[%clk
0:00:13.8]} 50. Re7 {[%clk 0:00:38.2]} 50... Kd5 {[%clk 0:00:11.5]} 51. a4
{[%clk 0:00:38.7]} 51... g5 {[%clk 0:00:10.9]} 52. a5 {[%clk 0:00:38.3]} 52...
Nc5 {[%clk 0:00:11.4]} 53. Rf7 {[%clk 0:00:37.5]} 53... Nb3+ {[%clk 0:00:10]}
54. Kd3 {[%clk 0:00:37.9]} 54... Nc5+ {[%clk 0:00:10.6]} 55. Ke2 {[%clk
0:00:38]} 55... Ke4 {[%clk 0:00:11.2]} 56. f3+ {[%clk 0:00:37.8]} 56... Kd5
{[%clk 0:00:11.7]} 57. Rxf5+ {[%clk 0:00:37.9]} 57... Kc4 {[%clk 0:00:12.1]} 58.
Rxc5+ {[%clk 0:00:38.3]} 58... Kxc5 {[%clk 0:00:13]} 59. Kd3 {[%clk 0:00:39.1]}
59... Kd5 {[%clk 0:00:13.6]} 60. a6 {[%clk 0:00:39.2]} 1-0

[Event "*** Titled Tuesday Blitz"]
[Site "Chess.com"]
[Date "2020.12.29"]
[Round "2"]
[White "DanielNaroditsky"]
[Black "Siniauski"]
[Result "1-0"]
[WhiteElo "3122"]
[BlackElo "2603"]
[TimeControl "180+1"]
[EndTime "10:18:35 PST"]
[Termination "DanielNaroditsky won on time"]

1. b3 {[%clk 0:03:00.9]} 1... Nf6 {[%clk 0:02:59]} 2. Bb2 {[%clk 0:03:00.9]}
2... e6 {[%clk 0:02:59.6]} 3. e3 {[%clk 0:03:00.3]} 3... Be7 {[%clk 0:03:00.1]}
4. Nf3 {[%clk 0:03:00]} 4... O-O {[%clk 0:03:00.6]} 5. d4 {[%clk 0:03:00.4]}
5... d5 {[%clk 0:03:01]} 6. Bd3 {[%clk 0:03:00.7]} 6... b6 {[%clk 0:03:01.2]} 7.
O-O {[%clk 0:02:59.8]} 7... Bb7 {[%clk 0:03:01.7]} 8. c4 {[%clk 0:02:58.3]} 8...
c6 {[%clk 0:03:01.1]} 9. Nbd2 {[%clk 0:02:57.8]} 9... Nbd7 {[%clk 0:03:01.5]}
10. Qc2 {[%clk 0:02:52.6]} 10... Rc8 {[%clk 0:03:00.3]} 11. Rad1 {[%clk
0:02:50.4]} 11... Qc7 {[%clk 0:02:57.9]} 12. e4 {[%clk 0:02:47.1]} 12... dxe4
{[%clk 0:02:55.2]} 13. Nxe4 {[%clk 0:02:48]} 13... Nxe4 {[%clk 0:02:55.6]} 14.
Bxe4 {[%clk 0:02:48.9]} 14... Nf6 {[%clk 0:02:56.3]} 15. Bd3 {[%clk 0:02:41.1]}
15... h6 {[%clk 0:02:52]} 16. Rfe1 {[%clk 0:02:35.6]} 16... c5 {[%clk
0:02:32.6]} 17. Ne5 {[%clk 0:02:25.8]} 17... cxd4 {[%clk 0:02:29.4]} 18. Bxd4
{[%clk 0:02:26.7]} 18... Rfd8 {[%clk 0:02:29.1]} 19. Bc3 {[%clk 0:02:27]} 19...
b5 {[%clk 0:02:10.7]} 20. Qe2 {[%clk 0:02:22.7]} 20... bxc4 {[%clk 0:02:07.8]}
21. bxc4 {[%clk 0:02:22.5]} 21... Bd6 {[%clk 0:01:47.6]} 22. h3 {[%clk
0:02:20.6]} 22... Bxe5 {[%clk 0:01:43]} 23. Bxe5 {[%clk 0:02:21.5]} 23... Qc6
{[%clk 0:01:43.2]} 24. f3 {[%clk 0:02:15.5]} 24... Nd7 {[%clk 0:01:42.6]} 25.
Be4 {[%clk 0:01:49.9]} 25... Qa6 {[%clk 0:01:37.7]} 26. Rd6 {[%clk 0:01:46.2]}
26... Nb6 {[%clk 0:01:28.5]} 27. c5 {[%clk 0:01:41.8]} 27... Qxe2 {[%clk
0:01:23.8]} 28. Rxe2 {[%clk 0:01:42.3]} 28... Rxd6 {[%clk 0:00:57.8]} 29. Bxd6
{[%clk 0:01:39.7]} 29... Nd5 {[%clk 0:00:45.7]} 30. Rb2 {[%clk 0:01:35.5]} 30...
Bc6 {[%clk 0:00:45.9]} 31. Bd3 {[%clk 0:01:30.4]} 31... f6 {[%clk 0:00:41.3]}
32. Ba6 {[%clk 0:01:24.4]} 32... Rd8 {[%clk 0:00:39.9]} 33. Bb7 {[%clk
0:01:23.3]} 33... Ba4 {[%clk 0:00:28.3]} 34. Rd2 {[%clk 0:00:56.2]} 34... Kf7
{[%clk 0:00:21.9]} 35. Rd4 {[%clk 0:00:55.5]} 35... Be8 {[%clk 0:00:20.2]} 36.
Rd3 {[%clk 0:00:52.4]} 36... Ne7 {[%clk 0:00:14.4]} 37. Ra3 {[%clk 0:00:50.1]}
37... Bc6 {[%clk 0:00:07.6]} 38. Bxe7 {[%clk 0:00:29.2]} 38... Rd1+ {[%clk
0:00:07]} 39. Kh2 {[%clk 0:00:29.9]} 39... Bxb7 {[%clk 0:00:07.1]} 40. Rxa7
{[%clk 0:00:30.8]} 40... Rd7 {[%clk 0:00:04.3]} 41. Bd6 {[%clk 0:00:29.6]} 41...
Ke8 {[%clk 0:00:04.1]} 42. a4 {[%clk 0:00:26.6]} 42... Bd5 {[%clk 0:00:04]} 43.
Ra6 {[%clk 0:00:25.5]} 43... f5 {[%clk 0:00:02.5]} 44. a5 {[%clk 0:00:25.3]}
44... Kf7 {[%clk 0:00:02.4]} 45. Rb6 {[%clk 0:00:21.2]} 45... Ra7 {[%clk
0:00:02.2]} 46. a6 {[%clk 0:00:20.7]} 46... Kf6 {[%clk 0:00:02.1]} 47. Bb8
{[%clk 0:00:19.8]} 47... Rd7 {[%clk 0:00:02.6]} 48. c6 {[%clk 0:00:19.3]} 48...
Rf7 {[%clk 0:00:01.4]} 49. a7 {[%clk 0:00:17.7]} 1-0

[Event "*** Titled Tuesday Blitz"]
[Site "Chess.com"]
[Date "2020.12.29"]
[Round "2"]
[White "maxip32"]
[Black "Rozum_Ivan"]
[Result "0-1"]
[WhiteElo "2500"]
[BlackElo "2742"]
[TimeControl "180+1"]
[EndTime "10:18:35 PST"]
[Termination "Rozum_Ivan won on time"]

1. e4 {[%clk 0:03:00.9]} 1... e5 {[%clk 0:02:58.6]} 2. Nf3 {[%clk 0:03:00.2]}
2... Nc6 {[%clk 0:02:59]} 3. Bc4 {[%clk 0:03:00]} 3... Be7 {[%clk 0:02:57.3]} 4.
O-O {[%clk 0:02:58.9]} 4... Nf6 {[%clk 0:02:57.1]} 5. d3 {[%clk 0:02:59]} 5...
O-O {[%clk 0:02:56.7]} 6. Re1 {[%clk 0:02:58.5]} 6... d6 {[%clk 0:02:56.4]} 7.
c3 {[%clk 0:02:58.3]} 7... h6 {[%clk 0:02:54.5]} 8. Nbd2 {[%clk 0:02:55.4]} 8...
Be6 {[%clk 0:02:54.2]} 9. a4 {[%clk 0:02:53]} 9... Qd7 {[%clk 0:02:50.4]} 10.
Bxe6 {[%clk 0:02:34.4]} 10... fxe6 {[%clk 0:02:41.7]} 11. d4 {[%clk 0:02:19.4]}
11... exd4 {[%clk 0:02:41.5]} 12. cxd4 {[%clk 0:02:19.9]} 12... d5 {[%clk
0:02:40.9]} 13. e5 {[%clk 0:02:17]} 13... Nh7 {[%clk 0:02:29.7]} 14. Nf1 {[%clk
0:01:57]} 14... Rxf3 {[%clk 0:02:17.8]} 15. Qxf3 {[%clk 0:01:56.2]} 15... Nxd4
{[%clk 0:02:15.7]} 16. Qd3 {[%clk 0:01:49.8]} 16... c5 {[%clk 0:02:14.2]} 17. b4
{[%clk 0:01:39.6]} 17... b6 {[%clk 0:01:51]} 18. a5 {[%clk 0:01:34.9]} 18... Rf8
{[%clk 0:01:42.8]} 19. axb6 {[%clk 0:01:33]} 19... axb6 {[%clk 0:01:43.7]} 20.
bxc5 {[%clk 0:01:25.1]} 20... bxc5 {[%clk 0:01:44.6]} 21. f4 {[%clk 0:01:07.9]}
21... Nc6 {[%clk 0:01:42.2]} 22. Ng3 {[%clk 0:01:03.2]} 22... c4 {[%clk
0:01:41.9]} 23. Qf3 {[%clk 0:01:00.8]} 23... Bc5+ {[%clk 0:01:41.1]} 24. Kh1
{[%clk 0:01:00.6]} 24... Nd4 {[%clk 0:01:41]} 25. Qd1 {[%clk 0:00:58]} 25... Nb3
{[%clk 0:01:41]} 26. Ra6 {[%clk 0:00:53.9]} 26... Bf2 {[%clk 0:01:33.8]} 27. Rf1
{[%clk 0:00:50.4]} 27... Bc5 {[%clk 0:01:21.3]} 28. Ba3 {[%clk 0:00:44]} 28...
Bxa3 {[%clk 0:01:18.3]} 29. Rxa3 {[%clk 0:00:44.9]} 29... Rd8 {[%clk 0:01:04.9]}
30. Rxb3 {[%clk 0:00:38.8]} 30... cxb3 {[%clk 0:01:04.6]} 31. Qxb3 {[%clk
0:00:39.7]} 31... Qc7 {[%clk 0:00:56]} 32. Qd3 {[%clk 0:00:21.8]} 32... Nf8
{[%clk 0:00:55.1]} 33. h3 {[%clk 0:00:20.4]} 33... Nd7 {[%clk 0:00:53.7]} 34.
Nh5 {[%clk 0:00:20.2]} 34... Nc5 {[%clk 0:00:35.7]} 35. Qg6 {[%clk 0:00:20]}
35... Qf7 {[%clk 0:00:35.9]} 36. Qg4 {[%clk 0:00:16.7]} 36... Rf8 {[%clk
0:00:30]} 37. g3 {[%clk 0:00:08.9]} 37... Kh7 {[%clk 0:00:28]} 38. Rc1 {[%clk
0:00:08]} 38... Ne4 {[%clk 0:00:26.5]} 39. Kg2 {[%clk 0:00:06.4]} 39... g6
{[%clk 0:00:20.6]} 40. Nf6+ {[%clk 0:00:06.5]} 40... Nxf6 {[%clk 0:00:21]} 41.
exf6 {[%clk 0:00:07.4]} 41... Qxf6 {[%clk 0:00:21.9]} 42. Rc7+ {[%clk
0:00:07.4]} 42... Rf7 {[%clk 0:00:22.3]} 43. Rc6 {[%clk 0:00:07.7]} 43... Re7
{[%clk 0:00:22.5]} 44. Qe2 {[%clk 0:00:06.4]} 44... Qf5 {[%clk 0:00:21.5]} 45.
Qe3 {[%clk 0:00:04.4]} 45... g5 {[%clk 0:00:21.3]} 46. fxg5 {[%clk 0:00:04.3]}
46... hxg5 {[%clk 0:00:22.2]} 47. Ra6 {[%clk 0:00:03.7]} 47... Kg7 {[%clk
0:00:21.4]} 48. g4 {[%clk 0:00:03.8]} 48... Qf6 {[%clk 0:00:21.3]} 0-1